[Event "Early-Titled-Tuesday-Blitz-September-05-2023"]
[Site "Chess.com"]
[Date "2023.09.05"]
[Round "2"]
[White "Alexander_Donchenko"]
[Black "OlaaLa"]
[Result "1-0"]
[WhiteElo "2843"]
[BlackElo "2431"]
[TimeControl "180+1"]
[EndTime "8:16:23 PDT"]
[Termination "Alexander_Donchenko won by checkmate"]

1. d4 {[%clk 0:02:59.4]} 1... e6 {[%clk 0:02:50.4]} 2. c4 {[%clk 0:02:59]} 2...
f5 {[%clk 0:02:50.6]} 3. g3 {[%clk 0:02:59]} 3... Be7 {[%clk 0:02:50.3]} 4. Bg2
{[%clk 0:02:57.8]} 4... Nf6 {[%clk 0:02:50.6]} 5. Bg5 {[%clk 0:02:57.7]} 5...
O-O {[%clk 0:02:50.8]} 6. Nc3 {[%clk 0:02:57.7]} 6... c6 {[%clk 0:02:50.1]} 7.
Nh3 {[%clk 0:02:55.9]} 7... d5 {[%clk 0:02:46.8]} 8. O-O {[%clk 0:02:55.6]} 8...
h6 {[%clk 0:02:46.4]} 9. Bxf6 {[%clk 0:02:55.7]} 9... Bxf6 {[%clk 0:02:46.5]}
10. Nf4 {[%clk 0:02:56.3]} 10... Qe8 {[%clk 0:02:43]} 11. e3 {[%clk 0:02:55.8]}
11... Nd7 {[%clk 0:02:36.9]} 12. Qc2 {[%clk 0:02:52.5]} 12... dxc4 {[%clk
0:02:25.7]} 13. b3 {[%clk 0:02:42.2]} 13... cxb3 {[%clk 0:02:22.3]} 14. Qxb3
{[%clk 0:02:43.1]} 14... Nb6 {[%clk 0:02:20.1]} 15. a4 {[%clk 0:02:42.3]} 15...
Kh7 {[%clk 0:02:16.6]} 16. h4 {[%clk 0:02:29.8]} 16... e5 {[%clk 0:02:14.3]} 17.
dxe5 {[%clk 0:02:29.5]} 17... Qxe5 {[%clk 0:02:14.5]} 18. Rac1 {[%clk
0:02:26.6]} 18... Nd7 {[%clk 0:02:09.2]} 19. h5 {[%clk 0:02:21]} 19... Re8
{[%clk 0:02:03.9]} 20. Qf7 {[%clk 0:02:14.9]} 20... Nf8 {[%clk 0:01:41.8]} 21.
Rfd1 {[%clk 0:02:09.2]} 21... Qe7 {[%clk 0:01:35.2]} 22. Qb3 {[%clk 0:02:06.7]}
22... Ne6 {[%clk 0:01:12]} 23. Nce2 {[%clk 0:02:03.3]} 23... Ng5 {[%clk
0:01:04.6]} 24. Nd4 {[%clk 0:01:59.9]} 24... Bxd4 {[%clk 0:00:52.7]} 25. exd4
{[%clk 0:01:57.2]} 25... Be6 {[%clk 0:00:50.5]} 26. Nxe6 {[%clk 0:01:51.3]}
26... Nxe6 {[%clk 0:00:48.7]} 27. d5 {[%clk 0:01:49]} 27... cxd5 {[%clk
0:00:47.7]} 28. Qxd5 {[%clk 0:01:49.2]} 28... Qf6 {[%clk 0:00:44.2]} 29. Qxb7
{[%clk 0:01:47.6]} 29... Rad8 {[%clk 0:00:44.2]} 30. Qxa7 {[%clk 0:01:46.3]}
30... f4 {[%clk 0:00:40.4]} 31. Rxd8 {[%clk 0:01:43.9]} 31... Rxd8 {[%clk
0:00:40.2]} 32. Qb6 {[%clk 0:01:43]} 32... fxg3 {[%clk 0:00:39]} 33. fxg3 {[%clk
0:01:43.9]} 33... Qd4+ {[%clk 0:00:26.4]} 34. Qxd4 {[%clk 0:01:43.3]} 34... Nxd4
{[%clk 0:00:26.3]} 35. Ra1 {[%clk 0:01:40.3]} 35... Rd7 {[%clk 0:00:18.1]} 36.
a5 {[%clk 0:01:40]} 36... Ra7 {[%clk 0:00:18.4]} 37. a6 {[%clk 0:01:39.7]} 37...
Kg8 {[%clk 0:00:15.6]} 38. Bb7 {[%clk 0:01:37.9]} 38... Nf5 {[%clk 0:00:14.6]}
39. Kg2 {[%clk 0:01:36.5]} 39... Nd6 {[%clk 0:00:13.6]} 40. Rb1 {[%clk
0:01:36.3]} 40... Kf7 {[%clk 0:00:12.8]} 41. Kf3 {[%clk 0:01:35.9]} 41... Kf6
{[%clk 0:00:13.2]} 42. Kf4 {[%clk 0:01:36.1]} 42... g5+ {[%clk 0:00:12.7]} 43.
hxg6 {[%clk 0:01:34.9]} 43... Kxg6 {[%clk 0:00:13.6]} 44. Rb6 {[%clk 0:01:34.7]}
44... Kh5 {[%clk 0:00:10.5]} 45. Rxd6 {[%clk 0:01:32.8]} 45... Rxb7 {[%clk
0:00:06.3]} 46. g4+ {[%clk 0:01:32.3]} 46... Kh4 {[%clk 0:00:05.7]} 47. Rxh6#
{[%clk 0:01:33.2]} 1-0

[Event "Early-Titled-Tuesday-Blitz-September-05-2023"]
[Site "Chess.com"]
[Date "2023.09.05"]
[Round "2"]
[White "LileKoridze"]
[Black "DrDreBeats"]
[Result "0-1"]
[WhiteElo "2360"]
[BlackElo "2537"]
[TimeControl "180+1"]
[EndTime "8:16:24 PDT"]
[Termination "DrDreBeats won by resignation"]

1. d4 {[%clk 0:03:00.9]} 1... Nf6 {[%clk 0:02:56.5]} 2. c4 {[%clk 0:03:01]} 2...
g6 {[%clk 0:02:56.6]} 3. Nc3 {[%clk 0:03:01.1]} 3... Bg7 {[%clk 0:02:57.2]} 4.
e4 {[%clk 0:03:01.6]} 4... O-O {[%clk 0:02:58.1]} 5. Nf3 {[%clk 0:03:01.9]} 5...
d6 {[%clk 0:02:57.8]} 6. Be2 {[%clk 0:03:02.3]} 6... e5 {[%clk 0:02:55.1]} 7.
O-O {[%clk 0:03:02.5]} 7... exd4 {[%clk 0:02:55.3]} 8. Nxd4 {[%clk 0:03:02]}
8... Nc6 {[%clk 0:02:55.9]} 9. Be3 {[%clk 0:03:01.1]} 9... Re8 {[%clk
0:02:56.2]} 10. f3 {[%clk 0:03:00.9]} 10... Nh5 {[%clk 0:02:56.3]} 11. Qd2
{[%clk 0:02:59.9]} 11... Nf4 {[%clk 0:02:53.8]} 12. Nxc6 {[%clk 0:02:55.8]}
12... Nxe2+ {[%clk 0:02:52.8]} 13. Qxe2 {[%clk 0:02:56]} 13... bxc6 {[%clk
0:02:53.1]} 14. Rad1 {[%clk 0:02:54.9]} 14... Qh4 {[%clk 0:02:48.9]} 15. Bf2
{[%clk 0:02:49.1]} 15... Qg5 {[%clk 0:02:46.4]} 16. Be3 {[%clk 0:02:46.2]} 16...
Qa5 {[%clk 0:02:40.4]} 17. Bd4 {[%clk 0:02:41]} 17... f5 {[%clk 0:02:26.6]} 18.
a3 {[%clk 0:02:18.6]} 18... Ba6 {[%clk 0:02:11.5]} 19. Rfe1 {[%clk 0:02:08.5]}
19... d5 {[%clk 0:02:00.1]} 20. Bxg7 {[%clk 0:01:46.3]} 20... Kxg7 {[%clk
0:01:59.8]} 21. Qd2 {[%clk 0:01:44.7]} 21... Qc5+ {[%clk 0:01:48.9]} 22. Kh1
{[%clk 0:01:44.2]} 22... fxe4 {[%clk 0:01:44]} 23. fxe4 {[%clk 0:01:44]} 23...
Bxc4 {[%clk 0:01:41.1]} 24. exd5 {[%clk 0:01:43.6]} 24... cxd5 {[%clk
0:01:36.9]} 25. h3 {[%clk 0:01:37.4]} 25... c6 {[%clk 0:01:34.5]} 26. Qf4 {[%clk
0:01:35.2]} 26... Bb3 {[%clk 0:00:52.9]} 27. Rf1 {[%clk 0:01:28]} 27... Qe7
{[%clk 0:00:46.8]} 28. Rde1 {[%clk 0:01:19.1]} 28... Qd7 {[%clk 0:00:34.1]} 29.
Qd4+ {[%clk 0:01:07.2]} 29... Kg8 {[%clk 0:00:33.6]} 30. Ne4 {[%clk 0:01:06.5]}
30... Rxe4 {[%clk 0:00:20.5]} 31. Qd1 {[%clk 0:01:06.3]} 31... Bxd1 {[%clk
0:00:20.1]} 0-1

[Event "Early-Titled-Tuesday-Blitz-September-05-2023"]
[Site "Chess.com"]
[Date "2023.09.05"]
[Round "2"]
[White "shimastream"]
[Black "WanderingPuppet"]
[Result "1-0"]
[WhiteElo "2960"]
[BlackElo "2631"]
[TimeControl "180+1"]
[EndTime "8:16:25 PDT"]
[Termination "shimastream won by resignation"]

1. b3 {[%clk 0:03:00.9]} 1... d5 {[%clk 0:02:57.7]} 2. Bb2 {[%clk 0:03:00.3]}
2... Nf6 {[%clk 0:02:58.3]} 3. Nf3 {[%clk 0:02:58.2]} 3... Bf5 {[%clk 0:02:57]}
4. g3 {[%clk 0:02:56.2]} 4... e6 {[%clk 0:02:57]} 5. Bg2 {[%clk 0:02:56.3]} 5...
h6 {[%clk 0:02:57.3]} 6. O-O {[%clk 0:02:56.9]} 6... Be7 {[%clk 0:02:56.4]} 7.
d3 {[%clk 0:02:57.5]} 7... O-O {[%clk 0:02:55.9]} 8. Nbd2 {[%clk 0:02:58.1]}
8... Bh7 {[%clk 0:02:55.2]} 9. Re1 {[%clk 0:02:52.4]} 9... c6 {[%clk 0:02:53.3]}
10. e4 {[%clk 0:02:52.2]} 10... a5 {[%clk 0:02:53.1]} 11. a3 {[%clk 0:02:50.8]}
11... Na6 {[%clk 0:02:52.4]} 12. Ne5 {[%clk 0:02:45.4]} 12... Nd7 {[%clk
0:02:51.1]} 13. Nxd7 {[%clk 0:02:29.1]} 13... Qxd7 {[%clk 0:02:50.8]} 14. Qg4
{[%clk 0:02:28.6]} 14... Bg6 {[%clk 0:02:42.6]} 15. h4 {[%clk 0:02:28.2]} 15...
h5 {[%clk 0:02:42.5]} 16. Qe2 {[%clk 0:02:28.3]} 16... a4 {[%clk 0:02:33]} 17.
b4 {[%clk 0:02:23.5]} 17... Nc7 {[%clk 0:02:28.7]} 18. c4 {[%clk 0:02:20.4]}
18... dxe4 {[%clk 0:02:11.1]} 19. dxe4 {[%clk 0:02:19.3]} 19... c5 {[%clk
0:02:03.8]} 20. b5 {[%clk 0:02:18.7]} 20... Rad8 {[%clk 0:01:54]} 21. Nf3 {[%clk
0:02:08.5]} 21... Qd3 {[%clk 0:01:41.2]} 22. Qxd3 {[%clk 0:02:01.2]} 22... Rxd3
{[%clk 0:01:42.1]} 23. Ne5 {[%clk 0:02:01.9]} 23... Rb3 {[%clk 0:01:34.2]} 24.
Nxg6 {[%clk 0:02:00.5]} 24... fxg6 {[%clk 0:01:35.1]} 25. Be5 {[%clk 0:02:00.8]}
25... Ne8 {[%clk 0:01:24.2]} 26. Bh3 {[%clk 0:01:54.5]} 26... Bf6 {[%clk
0:01:01.7]} 27. Bxe6+ {[%clk 0:01:53.7]} 27... Kh7 {[%clk 0:01:01.8]} 28. Bxf6
{[%clk 0:01:50.5]} 28... Nxf6 {[%clk 0:00:53.1]} 29. e5 {[%clk 0:01:49]} 29...
Ng4 {[%clk 0:00:43]} 30. Bxg4 {[%clk 0:01:42.5]} 30... hxg4 {[%clk 0:00:43.9]}
31. Ra2 {[%clk 0:01:34.3]} 31... Re8 {[%clk 0:00:27.4]} 32. Re4 {[%clk
0:01:29.4]} 32... g5 {[%clk 0:00:15.2]} 33. hxg5 {[%clk 0:01:12.8]} 33... Kg6
{[%clk 0:00:15.2]} 34. e6 {[%clk 0:01:13.4]} 34... Kxg5 {[%clk 0:00:13.7]} 35.
e7 {[%clk 0:01:12.4]} 35... Kf6 {[%clk 0:00:09.2]} 36. Rae2 {[%clk 0:01:11.9]}
36... Rxa3 {[%clk 0:00:07.1]} 37. Rf4+ {[%clk 0:01:12.1]} 1-0

[Event "Early-Titled-Tuesday-Blitz-September-05-2023"]
[Site "Chess.com"]
[Date "2023.09.05"]
[Round "2"]
[White "H_E_D_G_E_H_O_G"]
[Black "Arifarsky"]
[Result "0-1"]
[WhiteElo "2051"]
[BlackElo "2698"]
[TimeControl "180+1"]
[EndTime "8:16:25 PDT"]
[Termination "Arifarsky won by checkmate"]

1. d4 {[%clk 0:02:58.4]} 1... Nf6 {[%clk 0:03:00.2]} 2. Nf3 {[%clk 0:02:57.8]}
2... e6 {[%clk 0:03:00.6]} 3. Bf4 {[%clk 0:02:57.3]} 3... b6 {[%clk 0:02:56.4]}
4. e3 {[%clk 0:02:56.8]} 4... Bb7 {[%clk 0:02:56.9]} 5. Nbd2 {[%clk 0:02:55.6]}
5... Be7 {[%clk 0:02:56.3]} 6. h4 {[%clk 0:02:46.6]} 6... O-O {[%clk 0:02:51.8]}
7. Bd3 {[%clk 0:02:46.1]} 7... c5 {[%clk 0:02:43.2]} 8. c3 {[%clk 0:02:45.1]}
8... Nc6 {[%clk 0:02:36]} 9. h5 {[%clk 0:02:43.7]} 9... h6 {[%clk 0:02:35]} 10.
Qe2 {[%clk 0:02:39]} 10... d6 {[%clk 0:02:29.5]} 11. O-O-O {[%clk 0:02:33.4]}
11... Re8 {[%clk 0:02:11.1]} 12. Rhg1 {[%clk 0:02:23.8]} 12... Bf8 {[%clk
0:02:08.3]} 13. dxc5 {[%clk 0:01:55.6]} 13... e5 {[%clk 0:01:47.6]} 14. Bh2
{[%clk 0:01:38.7]} 14... e4 {[%clk 0:01:44.4]} 15. cxd6 {[%clk 0:01:28.9]} 15...
exd3 {[%clk 0:01:40.7]} 16. Qxd3 {[%clk 0:01:28.6]} 16... Rc8 {[%clk 0:01:29.4]}
17. Kb1 {[%clk 0:01:26.2]} 17... Qd7 {[%clk 0:01:16.7]} 18. g4 {[%clk
0:01:22.3]} 18... Nxg4 {[%clk 0:01:13.2]} 19. Rxg4 {[%clk 0:01:16]} 19... Qxg4
{[%clk 0:01:13]} 20. d7 {[%clk 0:01:16.3]} 20... Red8 {[%clk 0:01:04.2]} 21.
dxc8=Q {[%clk 0:01:14.4]} 21... Bxc8 {[%clk 0:01:05.1]} 22. Qc2 {[%clk
0:01:00.1]} 22... Qxh5 {[%clk 0:00:51.5]} 23. Bc7 {[%clk 0:00:58.6]} 23... Re8
{[%clk 0:00:41.8]} 24. Nd4 {[%clk 0:00:57.2]} 24... Nxd4 {[%clk 0:00:38.8]} 25.
cxd4 {[%clk 0:00:58.1]} 25... Bf5 {[%clk 0:00:37.1]} 26. e4 {[%clk 0:00:57.7]}
26... Rxe4 {[%clk 0:00:37.4]} 27. Nxe4 {[%clk 0:00:57.6]} 27... Bxe4 {[%clk
0:00:37.7]} 28. Rd3 {[%clk 0:00:44.6]} 28... Qh1+ {[%clk 0:00:36.9]} 29. Rd1
{[%clk 0:00:38.2]} 29... Qxd1# {[%clk 0:00:31.7]} 0-1

[Event "Early-Titled-Tuesday-Blitz-September-05-2023"]
[Site "Chess.com"]
[Date "2023.09.05"]
[Round "2"]
[White "NLLO777"]
[Black "Sanan_Sjugirov"]
[Result "0-1"]
[WhiteElo "2433"]
[BlackElo "2903"]
[TimeControl "180+1"]
[EndTime "8:16:33 PDT"]
[Termination "Sanan_Sjugirov won by resignation"]

1. d4 {[%clk 0:03:00.9]} 1... Nf6 {[%clk 0:02:57.4]} 2. c4 {[%clk 0:03:00.9]}
2... e6 {[%clk 0:02:57.9]} 3. Nf3 {[%clk 0:03:01.1]} 3... Bb4+ {[%clk
0:02:57.9]} 4. Bd2 {[%clk 0:03:01.2]} 4... c5 {[%clk 0:02:58.4]} 5. Bxb4 {[%clk
0:03:00.5]} 5... cxb4 {[%clk 0:02:59.3]} 6. g3 {[%clk 0:03:01.1]} 6... O-O
{[%clk 0:02:59.5]} 7. Bg2 {[%clk 0:03:01.7]} 7... d6 {[%clk 0:02:59.9]} 8. O-O
{[%clk 0:03:02.3]} 8... Nc6 {[%clk 0:03:00.7]} 9. a3 {[%clk 0:03:00.8]} 9...
bxa3 {[%clk 0:03:00.4]} 10. Rxa3 {[%clk 0:02:59.6]} 10... a5 {[%clk 0:03:00]}
11. Nc3 {[%clk 0:02:59.2]} 11... Qe7 {[%clk 0:02:57.5]} 12. e3 {[%clk
0:02:55.4]} 12... Bd7 {[%clk 0:02:55.5]} 13. Qd2 {[%clk 0:02:55.1]} 13... Rfc8
{[%clk 0:02:53.9]} 14. b3 {[%clk 0:02:47.5]} 14... b6 {[%clk 0:02:53.9]} 15. d5
{[%clk 0:02:34.5]} 15... exd5 {[%clk 0:02:50]} 16. Nxd5 {[%clk 0:02:33.3]} 16...
Nxd5 {[%clk 0:02:50.5]} 17. Qxd5 {[%clk 0:02:34.1]} 17... Nb4 {[%clk 0:02:49.9]}
18. Qg5 {[%clk 0:02:23.4]} 18... Qf8 {[%clk 0:02:45.6]} 19. Nd4 {[%clk
0:02:20.6]} 19... Rab8 {[%clk 0:02:44.8]} 20. Rd1 {[%clk 0:02:15.8]} 20... Rc5
{[%clk 0:02:45.3]} 21. Qf4 {[%clk 0:02:13.3]} 21... d5 {[%clk 0:02:41.8]} 22.
cxd5 {[%clk 0:01:37]} 22... Nxd5 {[%clk 0:02:42.7]} 23. Qf3 {[%clk 0:01:14.5]}
23... Nc3 {[%clk 0:02:40.6]} 24. Re1 {[%clk 0:01:05.8]} 24... Rbc8 {[%clk
0:02:35.8]} 25. Raa1 {[%clk 0:01:05.5]} 25... h5 {[%clk 0:02:30.6]} 26. h3
{[%clk 0:01:04]} 26... Qe7 {[%clk 0:02:29.6]} 27. Rac1 {[%clk 0:00:56.7]} 27...
Be6 {[%clk 0:02:24]} 28. Qb7 {[%clk 0:00:51.4]} 28... Qxb7 {[%clk 0:02:22.4]}
29. Bxb7 {[%clk 0:00:52.3]} 29... R8c7 {[%clk 0:02:23.1]} 30. Bf3 {[%clk
0:00:35.5]} 30... Bxh3 {[%clk 0:02:18.4]} 31. Kh2 {[%clk 0:00:32.8]} 31... Bg4
{[%clk 0:02:17.9]} 32. Bxg4 {[%clk 0:00:31.5]} 32... hxg4 {[%clk 0:02:18.8]} 33.
Kg2 {[%clk 0:00:32]} 33... g6 {[%clk 0:02:17.7]} 34. Rc2 {[%clk 0:00:32.1]}
34... Ne4 {[%clk 0:02:16.8]} 35. Rxc5 {[%clk 0:00:27.5]} 35... Rxc5 {[%clk
0:02:17.7]} 36. Rd1 {[%clk 0:00:27.2]} 36... Kg7 {[%clk 0:02:16.4]} 37. f3
{[%clk 0:00:22.7]} 37... gxf3+ {[%clk 0:02:16.1]} 38. Kxf3 {[%clk 0:00:23.6]}
38... Nf6 {[%clk 0:02:12.9]} 39. g4 {[%clk 0:00:17.8]} 39... Rc3 {[%clk
0:02:12.9]} 40. Kf4 {[%clk 0:00:16.8]} 40... Nd5+ {[%clk 0:02:13]} 41. Ke4
{[%clk 0:00:17.4]} 41... Nxe3 {[%clk 0:02:12.2]} 42. Re1 {[%clk 0:00:15.6]}
42... Nxg4 {[%clk 0:02:11.7]} 43. Kd5 {[%clk 0:00:15.2]} 43... Nf6+ {[%clk
0:02:10.9]} 44. Kd6 {[%clk 0:00:15.1]} 44... Rd3 {[%clk 0:02:11.3]} 45. Ke5
{[%clk 0:00:13.2]} 45... Nd7+ {[%clk 0:02:10.5]} 46. Kd5 {[%clk 0:00:13.2]}
46... Nc5 {[%clk 0:02:08]} 47. Kc4 {[%clk 0:00:12.1]} 47... Rh3 {[%clk
0:02:07.9]} 48. Re7 {[%clk 0:00:11.8]} 48... Rh4 {[%clk 0:02:06.3]} 49. Kd5
{[%clk 0:00:11]} 49... Rh5+ {[%clk 0:02:06.3]} 50. Kc4 {[%clk 0:00:11.1]} 50...
Rh4 {[%clk 0:02:02.6]} 51. Kd5 {[%clk 0:00:11.3]} 51... a4 {[%clk 0:01:52.5]}
52. bxa4 {[%clk 0:00:11.3]} 52... Nxa4 {[%clk 0:01:53.4]} 53. Rb7 {[%clk
0:00:10]} 53... Nc3+ {[%clk 0:01:52.4]} 54. Kc4 {[%clk 0:00:09.5]} 54... Ne2
{[%clk 0:01:52.1]} 55. Rd7 {[%clk 0:00:08]} 55... Rxd4+ {[%clk 0:01:51.8]} 56.
Kb5 {[%clk 0:00:08.9]} 56... Rxd7 {[%clk 0:01:51.5]} 0-1

[Event "Early-Titled-Tuesday-Blitz-September-05-2023"]
[Site "Chess.com"]
[Date "2023.09.05"]
[Round "2"]
[White "Cambek64"]
[Black "Heinza9"]
[Result "1-0"]
[WhiteElo "2491"]
[BlackElo "2273"]
[TimeControl "180+1"]
[EndTime "8:16:33 PDT"]
[Termination "Cambek64 won by resignation"]

1. e4 {[%clk 0:02:56.9]} 1... e5 {[%clk 0:02:54.4]} 2. Nf3 {[%clk 0:02:56.6]}
2... Nc6 {[%clk 0:02:54.3]} 3. Bc4 {[%clk 0:02:56.8]} 3... Nf6 {[%clk
0:02:53.9]} 4. d3 {[%clk 0:02:56]} 4... d5 {[%clk 0:02:53.8]} 5. exd5 {[%clk
0:02:55.2]} 5... Nxd5 {[%clk 0:02:53.9]} 6. O-O {[%clk 0:02:55.7]} 6... Nb6
{[%clk 0:02:54.2]} 7. Bb3 {[%clk 0:02:54.4]} 7... h6 {[%clk 0:02:50.5]} 8. Re1
{[%clk 0:02:50.8]} 8... Bd6 {[%clk 0:02:47.7]} 9. h3 {[%clk 0:02:48.6]} 9... O-O
{[%clk 0:02:47]} 10. a3 {[%clk 0:02:47.4]} 10... a5 {[%clk 0:02:45.8]} 11. Nc3
{[%clk 0:02:47.8]} 11... a4 {[%clk 0:02:45.3]} 12. Ba2 {[%clk 0:02:47.4]} 12...
Kh8 {[%clk 0:02:43.4]} 13. d4 {[%clk 0:02:43.4]} 13... exd4 {[%clk 0:02:42.3]}
14. Nb5 {[%clk 0:02:40.8]} 14... Ra5 {[%clk 0:02:28]} 15. Nbxd4 {[%clk
0:02:35.6]} 15... Nxd4 {[%clk 0:02:27.4]} 16. Qxd4 {[%clk 0:02:34.8]} 16... Rh5
{[%clk 0:02:15.6]} 17. Bf4 {[%clk 0:02:27.2]} 17... Bxf4 {[%clk 0:01:52.9]} 18.
Qxf4 {[%clk 0:02:25.5]} 18... Rf5 {[%clk 0:01:52.8]} 19. Qd4 {[%clk 0:02:08.6]}
19... Qf6 {[%clk 0:01:26.1]} 20. Qxf6 {[%clk 0:02:04.9]} 20... Rxf6 {[%clk
0:01:26.4]} 21. Re7 {[%clk 0:02:00]} 21... c6 {[%clk 0:01:24.2]} 22. Ne5 {[%clk
0:01:46.1]} 22... Nd5 {[%clk 0:01:12.9]} 23. Bxd5 {[%clk 0:01:39.3]} 23... cxd5
{[%clk 0:01:13.1]} 24. Rd1 {[%clk 0:01:36]} 24... Be6 {[%clk 0:01:11.4]} 25.
Rxb7 {[%clk 0:01:32.7]} 25... Rc8 {[%clk 0:01:11]} 26. c3 {[%clk 0:01:32]} 26...
Rf5 {[%clk 0:01:08.6]} 27. Nf3 {[%clk 0:01:29.9]} 27... Rf4 {[%clk 0:01:06.3]}
28. Nd4 {[%clk 0:01:29.9]} 28... Re4 {[%clk 0:01:04.5]} 29. f3 {[%clk
0:01:28.1]} 29... Re5 {[%clk 0:01:01.9]} 30. Kf2 {[%clk 0:01:27.9]} 30... g5
{[%clk 0:00:56.4]} 31. Re1 {[%clk 0:01:27.8]} 31... Rxe1 {[%clk 0:00:51.1]} 32.
Kxe1 {[%clk 0:01:28.4]} 32... Re8 {[%clk 0:00:44.2]} 33. Kd2 {[%clk 0:01:28.9]}
33... h5 {[%clk 0:00:39.4]} 34. Rb4 {[%clk 0:01:21.5]} 34... Bd7 {[%clk
0:00:33.3]} 35. Nc2 {[%clk 0:01:13.1]} 35... g4 {[%clk 0:00:31.5]} 36. hxg4
{[%clk 0:01:12.7]} 36... hxg4 {[%clk 0:00:31.8]} 37. fxg4 {[%clk 0:01:13.4]}
37... Rg8 {[%clk 0:00:28.8]} 38. Ne3 {[%clk 0:01:12.8]} 38... Be6 {[%clk
0:00:27.8]} 39. Rxa4 {[%clk 0:01:11.9]} 1-0

[Event "Early-Titled-Tuesday-Blitz-September-05-2023"]
[Site "Chess.com"]
[Date "2023.09.05"]
[Round "2"]
[White "S-Fazulyanov"]
[Black "AsaHoffmann"]
[Result "0-1"]
[WhiteElo "2490"]
[BlackElo "2359"]
[TimeControl "180+1"]
[EndTime "8:16:34 PDT"]
[Termination "AsaHoffmann won by resignation"]

1. e4 {[%clk 0:03:00]} 1... d6 {[%clk 0:02:56]} 2. c3 {[%clk 0:02:59.5]} 2...
Nf6 {[%clk 0:02:54.7]} 3. f4 {[%clk 0:02:56.9]} 3... c6 {[%clk 0:02:49.8]} 4. d3
{[%clk 0:02:54.4]} 4... e5 {[%clk 0:02:48.3]} 5. Nf3 {[%clk 0:02:54.6]} 5...
Nbd7 {[%clk 0:02:42.2]} 6. Be2 {[%clk 0:02:53.4]} 6... Qb6 {[%clk 0:02:41.5]} 7.
h3 {[%clk 0:02:42.5]} 7... Nh5 {[%clk 0:02:37.4]} 8. fxe5 {[%clk 0:02:28.1]}
8... Ng3 {[%clk 0:02:35]} 9. Rg1 {[%clk 0:02:21.5]} 9... dxe5 {[%clk 0:02:34.7]}
10. d4 {[%clk 0:01:45.3]} 10... Nxe4 {[%clk 0:02:26.7]} 11. Bd3 {[%clk
0:01:44.8]} 11... f5 {[%clk 0:02:11.4]} 12. Bxe4 {[%clk 0:01:36]} 12... fxe4
{[%clk 0:02:10.5]} 13. Ng5 {[%clk 0:01:36.9]} 13... Nf6 {[%clk 0:02:04.5]} 14.
Be3 {[%clk 0:01:22.2]} 14... h6 {[%clk 0:01:51]} 15. Qe2 {[%clk 0:00:23.9]}
15... hxg5 {[%clk 0:01:42.1]} 16. dxe5 {[%clk 0:00:24.4]} 16... Bc5 {[%clk
0:01:41.7]} 17. exf6 {[%clk 0:00:24.6]} 17... Bxe3 {[%clk 0:01:38.6]} 18. Rf1
{[%clk 0:00:25.5]} 18... gxf6 {[%clk 0:01:32]} 19. Rxf6 {[%clk 0:00:24.9]} 19...
Ke7 {[%clk 0:01:05.5]} 20. Rf1 {[%clk 0:00:13.1]} 20... Be6 {[%clk 0:00:59.3]}
21. Na3 {[%clk 0:00:13.6]} 21... Bf4 {[%clk 0:00:55.5]} 22. Qxe4 {[%clk
0:00:11.2]} 22... Qxb2 {[%clk 0:00:47.3]} 23. Nc2 {[%clk 0:00:10.8]} 23... Qxc3+
{[%clk 0:00:40.8]} 24. Ke2 {[%clk 0:00:10.6]} 24... Qc4+ {[%clk 0:00:39.3]} 0-1

[Event "Early-Titled-Tuesday-Blitz-September-05-2023"]
[Site "Chess.com"]
[Date "2023.09.05"]
[Round "2"]
[White "mitrabhaa"]
[Black "tteshan"]
[Result "1-0"]
[WhiteElo "2822"]
[BlackElo "2563"]
[TimeControl "180+1"]
[EndTime "8:16:37 PDT"]
[Termination "mitrabhaa won by resignation"]

1. d4 {[%clk 0:03:00.9]} 1... d5 {[%clk 0:03:00]} 2. Bf4 {[%clk 0:03:00.1]} 2...
Nf6 {[%clk 0:02:59.8]} 3. e3 {[%clk 0:03:00.1]} 3... c5 {[%clk 0:03:00.2]} 4.
Nf3 {[%clk 0:02:59.8]} 4... Nc6 {[%clk 0:03:00]} 5. Nbd2 {[%clk 0:02:58.7]} 5...
e6 {[%clk 0:03:00.1]} 6. c3 {[%clk 0:02:58.7]} 6... Nh5 {[%clk 0:03:00.3]} 7.
Be5 {[%clk 0:02:57.6]} 7... f6 {[%clk 0:02:57.6]} 8. Bg3 {[%clk 0:02:55.3]} 8...
g6 {[%clk 0:02:52.4]} 9. Bd3 {[%clk 0:02:55]} 9... cxd4 {[%clk 0:02:41.9]} 10.
exd4 {[%clk 0:02:54.3]} 10... Bd6 {[%clk 0:02:23.4]} 11. Bxd6 {[%clk 0:02:52.7]}
11... Qxd6 {[%clk 0:02:24.3]} 12. O-O {[%clk 0:02:53]} 12... O-O {[%clk
0:02:23.6]} 13. Re1 {[%clk 0:02:53.1]} 13... e5 {[%clk 0:02:06.4]} 14. dxe5
{[%clk 0:02:52.4]} 14... fxe5 {[%clk 0:02:07.3]} 15. Nc4 {[%clk 0:02:52.4]}
15... Qf6 {[%clk 0:01:58.1]} 16. Ncxe5 {[%clk 0:02:51.1]} 16... Nxe5 {[%clk
0:01:42.5]} 17. Rxe5 {[%clk 0:02:39.2]} 17... Bg4 {[%clk 0:01:38]} 18. Re3
{[%clk 0:02:38.7]} 18... Rae8 {[%clk 0:01:33.9]} 19. Be2 {[%clk 0:02:33.9]}
19... Nf4 {[%clk 0:01:27.9]} 20. Rxe8 {[%clk 0:02:04.6]} 20... Rxe8 {[%clk
0:01:28.7]} 21. Bb5 {[%clk 0:02:00.7]} 21... Rf8 {[%clk 0:01:21.1]} 22. Qd4
{[%clk 0:01:59.4]} 22... Nh3+ {[%clk 0:01:04.7]} 23. gxh3 {[%clk 0:01:46.1]}
23... Bxf3 {[%clk 0:01:04]} 24. Qxf6 {[%clk 0:01:46.1]} 24... Rxf6 {[%clk
0:01:04.9]} 25. Re1 {[%clk 0:01:45.1]} 25... Be4 {[%clk 0:01:00.5]} 26. Re3
{[%clk 0:01:38.1]} 26... Kf7 {[%clk 0:00:59]} 27. Bd3 {[%clk 0:01:37.8]} 27...
Bxd3 {[%clk 0:00:54.9]} 28. Rxd3 {[%clk 0:01:38.7]} 28... Ke6 {[%clk 0:00:55.6]}
29. Kg2 {[%clk 0:01:37.1]} 29... Ke5 {[%clk 0:00:54.5]} 30. Re3+ {[%clk
0:01:37.1]} 30... Kd6 {[%clk 0:00:54.5]} 31. Rf3 {[%clk 0:01:36.8]} 31... Rxf3
{[%clk 0:00:37.4]} 32. Kxf3 {[%clk 0:01:37.7]} 32... Ke5 {[%clk 0:00:38.2]} 33.
Kg4 {[%clk 0:01:34.8]} 33... Kf6 {[%clk 0:00:32.3]} 34. h4 {[%clk 0:01:32.3]}
34... h5+ {[%clk 0:00:29.8]} 35. Kf4 {[%clk 0:01:32.3]} 35... a6 {[%clk
0:00:25.4]} 36. a4 {[%clk 0:01:25.6]} 36... a5 {[%clk 0:00:24]} 37. b3 {[%clk
0:01:21.7]} 37... b6 {[%clk 0:00:23.7]} 38. f3 {[%clk 0:01:19.4]} 38... Ke6
{[%clk 0:00:18.2]} 39. Kg5 {[%clk 0:01:19.8]} 39... Kf7 {[%clk 0:00:18.4]} 40.
f4 {[%clk 0:01:19.6]} 40... Kg7 {[%clk 0:00:11.6]} 41. f5 {[%clk 0:01:17.4]}
41... gxf5 {[%clk 0:00:11.7]} 42. Kxf5 {[%clk 0:01:18.3]} 1-0